Cogmind - Beta 11.1 @@@ ROGUE MODE // 2022.12.20 @ 19:59:30 Player: M4NZ Result: Destroyed by S-10 Pest with Light Assault Rifle Performance ------------- Evolutions (2) 1000 Regions Visited (5) 1000 Robots Destroyed (68) 340 Value Destroyed (1770) 1770 Prototype IDs (1) 20 Alien Tech Used (0) 0 Bonus (82) 82 TOTAL SCORE: 4212 Bonus ------- High Alert Combat Kills 82 Cogmind --------- Core Integrity 0/550 Matter 300/300 Energy 67/100 System Corruption 0% Temperature Cool (0) Movement Core (50) Location -8/Storage Parts ------- > --- POWER (1) -------- (None) > --- PROPULSION (4) --- (None) > --- UTILITY (4) ------ Advanced Visual Processing Unit Sensor Array Launcher Guidance Computer > --- WEAPON (2) ------- (None) > --- INVENTORY (5) ---- Aluminum Leg Heat Sink Weight Redist. System System Shield Heavy Assault Rifle Peak State ------------ > --- POWER ------------ Nuclear Core > --- PROPULSION ------- Aluminum Leg Aluminum Leg Aluminum Leg Aluminum Leg > --- UTILITY ---------- Large Storage Unit Advanced Visual Processing Unit Sensor Array Drone Bay > --- WEAPON ----------- Heavy Assault Rifle Heavy Assault Rifle > --- INVENTORY -------- Light Ion Engine Aluminum Leg Aluminum Leg Heat Sink Medium Storage Unit Large Matter Pod Weight Redist. System ECM Suite System Shield Small Laser Small Laser Beam Rifle Heavy Particle Cannon Ion Burst Cannon Rocket Launcher [Rating: 23] Favorites ----------- Power Light Ion Engine Engine Light Ion Engine Power Core Nuclear Core Propulsion Aluminum Leg Treads Light Treads Leg Aluminum Leg Utility Large Storage Unit Device Sensor Array Storage Large Storage Unit Processor Advanced Visual Processing Unit Protection Weapon Shielding Weapon Small Laser Energy Gun Small Laser Energy Cannon Particle Cannon Ballistic Gun Heavy Assault Rifle Launcher Missile Launcher Special Weapon Mining Laser Build | -11 -10 -9 -9 -8 -8 ------- Run | Scr Mat Mat Min Mat Sto Slots Evolved 4 | . . 2 . 2 . Power . | . . . . . . Propulsion 2 | . . 2 . . . Utility 2 | . . . . 2 . Weapon . | . . . . . . Parts Attached 73 | 6 20 26 . 11 10 Power 9 | 1 4 2 . . 2 Engine 8 | 1 4 1 . . 2 Core 1 | . . 1 . . . Reactor . | . . . . . . Propulsion 30 | 2 7 14 . 5 2 Treads 4 | . . 4 . . . Leg 26 | 2 7 10 . 5 2 Wheel . | . . . . . . Hover . | . . . . . . Flight . | . . . . . . Utility 12 | 1 3 3 . 3 2 Device 5 | . . 2 . 2 1 Storage 3 | 1 1 1 . . . Processor 3 | . 1 . . 1 1 Hackware . | . . . . . . Protection 1 | . 1 . . . . Artifact . | . . . . . . Weapon 22 | 2 6 7 . 3 4 Energy Gun 7 | 2 2 3 . . . Energy Cannon 8 | . 3 3 . . 2 Ballistic Gun 2 | . . . . 2 . Ballistic Cannon . | . . . . . . Launcher 3 | . . . . 1 2 Special Weapon 2 | . 1 1 . . . Impact Weapon . | . . . . . . Slashing Weapon . | . . . . . . Piercing Weapon . | . . . . . . Special Melee Weapon . | . . . . . . Unidentified Prototypes 1 | . . . . . 1 Parts Lost 24 | . 1 8 . 4 11 Power 3 | . . 1 . . 2 Propulsion 12 | . 1 4 . 2 5 Utility 1 | . . . . . 1 Weapon 8 | . . 3 . 2 3 Highest Loss Streak 5 | . 1 3 . 4 5 To Critical Strikes 1 | . . 1 . . . Average Slot Usage (%) 92 | . 97 89 100 96 87 Engine 8 | . 13 7 . . 3 Core 2 | . . 3 11 9 3 Treads 4 | . . 14 . . . Leg 27 | . 27 21 44 34 31 Device 6 | . . 7 11 18 12 Storage 11 | . 14 11 11 9 8 Processor 4 | . 2 3 . 9 9 Protection 4 | . 10 . . . . Energy Gun 12 | . 18 16 . . . Energy Cannon 5 | . 7 3 22 6 3 Ballistic Gun 2 | . . . . 6 12 Special Weapon 1 | . 1 1 . . . Naked Turns . | . . . . . . Heaviest Build 42 | 11 22 39 39 42 40 Greatest Support 80 | 20 20 80 49 43 40 Greatest Overweight (x) 9 | 2 5 9 . 1 1 Average Overweight (x) . | . . . . . . Largest Inventory Capacity 15 | 8 10 15 15 15 15 Average Capacity 12 | 7 9 14 15 15 14 Most Carried 15 | 2 10 15 15 15 15 Average Carried 10 | 1 8 11 14 13 14 Final Capacity 15 | 8 10 15 15 15 5 Final Carried 15 | 2 10 14 15 13 5 Class Distribution -------------------- 67% | Mutant 32% | Scavenger-Mutant Dominant Class ---------------- Mutant | -10/Materials Scavenger-Mutant | -9/Materials Mutant | -9/Mines Mutant | -8/Materials Mutant | -8/Storage Resources | -11 -10 -9 -9 -8 -8 ----------- Run | Scr Mat Mat Min Mat Sto Matter Collected 1459 | 236 262 412 . 151 398 Remotely . | . . . . . . Salvage Created 2110 | . 391 794 . 296 629 Parts 131 | . 33 41 . 23 34 Haulers Intercepted 2 | . . 2 . . . Recyclers Shooed 1 | . 1 . . . . Parts Field Recycled . | . . . . . . Retrieved Matter . | . . . . . . Parts Self-Destructed . | . . . . . . Prevented . | . . . . . . Kills | -11 -10 -9 -9 -8 -8 ------- Run | Scr Mat Mat Min Mat Sto Combat Hostiles Destroyed 50 | . 12 18 . 9 11 Guns 27 | . 6 12 . 2 7 Cannons 17 | . 6 6 . 1 4 AOE 6 | . . . . 6 . Classes Destroyed 9 | . 6 2 . . 1 Worker 3 | . 1 1 . . 1 Builder 9 | . 1 1 . 4 3 Hauler 2 | . . 2 . . . Recycler 2 | . 1 1 . . . Watcher 2 | . 1 . . 1 . Swarmer 16 | . 9 7 . . . Grunt 27 | . 3 7 . 9 8 Sentry 6 | . . 4 . . 2 Demolisher 1 | . . . . . 1 Best Kill Streak 7 | . 4 5 . 7 6 Combat Bots Only 6 | . 3 5 . 4 6 Max Kills in Single Turn 4 | . 2 2 . 4 2 Gunslinging . | . . . . . . Exploded 2 | . . . . 2 . Melee . | . . . . . . Uniques/NPCs Destroyed . | . . . . . . Combat | -11 -10 -9 -9 -8 -8 -------- Run | Scr Mat Mat Min Mat Sto Damage Taken 3810 | . 326 1381 . 727 1376 Core 951 | . 87 314 . 140 410 Absorbed by Shields . | . . . . . . Redirected to Shielding 21 | . 21 . . . . Core Remaining (%) 62 | 100 65 . 21 . . Volleys Fired 174 | . 34 64 . 24 52 Largest 2 | . 2 2 . 2 2 Hottest 175 | . 118 140 . 99 175 Shots Fired 313 | . 64 120 . 41 88 Gun 216 | . 36 95 . 20 65 Cannon 77 | . 24 21 . 10 22 Launcher 12 | . . . . 11 1 Special 8 | . 4 4 . . . Kinetic 85 | . . . . 20 65 Thermal 182 | . 58 102 . . 22 Explosive 12 | . . . . 11 1 Electromagnetic 34 | . 6 18 . 10 . Robot Hit Streak 29 | . 15 29 . 12 13 Robot Miss Streak 4 | . 4 3 . 4 4 Penetration Max . | . . . . . . Secondary Targets 4 | . . 2 . 1 1 Max Gunslinging Chain 1 | . . 1 . 1 1 Shots Hit Robots 189 | . 34 81 . 18 56 Core Hits 108 | . 19 32 . 28 29 Critical Kills 1 | . . . . . 1 Critical Parts Destroyed . | . . . . . . Critical Strikes 4 | . . 3 . . 1 Burn 3 | . . 3 . . . Destroy 1 | . . . . . 1 Melee Attacks . | . . . . . . Impact . | . . . . . . Slashing . | . . . . . . Piercing . | . . . . . . Sneak Attacks . | . . . . . . Combat Hostiles . | . . . . . . Follow-up Attacks . | . . . . . . Damage Inflicted 4454 | . 598 1329 . 1303 1224 Guns 1811 | . 237 816 . 155 603 Cannons 1435 | . 349 342 . 135 609 Explosions 1124 | . . 99 . 1013 12 Melee . | . . . . . . Ramming 12 | . 12 . . . . Kinetic 758 | . . . . 155 603 Thermal 2276 | . 541 1126 . . 609 Explosive 1025 | . . . . 1013 12 Electromagnetic 383 | . 45 203 . 135 . Impact . | . . . . . . Slashing . | . . . . . . Piercing . | . . . . . . Highest Corruption . | . . . . . . Average Corruption . | . . . . . . Corruption Purged . | . . . . . . Corruption Blocked . | . . . . . . Overload Shots . | . . . . . . Overflow Damage 12 | . . . . 12 . Projectiles 12 | . . . . 12 . Explosions . | . . . . . . Melee . | . . . . . . Knockbacks . | . . . . . . Impact . | . . . . . . Kinetic . | . . . . . . Secondary . | . . . . . . Self-Inflicted Damage 114 | . . . . 70 44 Shots 4 | . . . . 3 1 Rammed . | . . . . . . Targets Rammed 2 | . 2 . . . . Kicked 2 | . 2 . . . . Crushed . | . . . . . . Highest Temperature 576 | . 385 576 . 122 359 Average Temperature 125 | . 106 163 . 55 121 Received Heat Transfer 1437 | . 36 492 . 378 531 Effects 25 | . 1 23 . . 1 Shutdowns 4 | . 1 3 . . . Energy Bleed 2 | . . 2 . . . Interference 4 | . . 3 . . 1 Matter Decay 2 | . . 2 . . . Short Circuit 7 | . . 7 . . . Damage (minor) 1 | . . 1 . . . Damage (major) 4 | . . 4 . . . Damage (core) 1 | . . 1 . . . Siege Activations . | . . . . . . Robots Corrupted . | . . . . . . Combat Hostiles . | . . . . . . Parts Fried 1 | . . . . 1 . Impact Corruptions . | . . . . . . Robots Melted . | . . . . . . Combat Hostiles . | . . . . . . Parts Melted 7 | . 4 2 . . 1 Heat Transferred 4563 | . 1138 2665 . . 760 Parts Sabotaged . | . . . . . . Parts Stolen . | . . . . . . Parts Stripped . | . . . . . . Power Chain Reactions 1 | . . 1 . . . Missiles Intercepted . | . . . . . . Alert | -11 -10 -9 -9 -8 -8 ------- Run | Scr Mat Mat Min Mat Sto Peak Influence 576 | . 177 576 183 399 444 Initial 183 | . . 52 183 70 168 Average 230 | . 74 405 183 257 284 Maximum Alert Level 2 | . . 2 . 1 2 Low Security (%) 54 | 100 100 9 100 29 30 Level 1 24 | . . 32 . 70 50 Level 2 21 | . . 57 . . 18 Level 3 . | . . . . . . Level 4 . | . . . . . . Level 5 . | . . . . . . High Security . | . . . . . . Max Security . | . . . . . . Squads Dispatched 12 | . 2 2 . 2 6 Investigation 2 | . 1 . . . 1 Extermination . | . . . . . . Reinforcement 7 | . 1 2 . 2 2 Assault . | . . . . . . Garrison 3 | . . . . . 3 Intercept . | . . . . . . Searches Triggered . | . . . . . . Construction Impeded 2 | . . 1 . 1 . Haulers Reinforced . | . . . . . . Active Scanning Responses . | . . . . . . Cargo Convoy Interrupts . | . . . . . . Stealth | -11 -10 -9 -9 -8 -8 --------- Run | Scr Mat Mat Min Mat Sto Distress Signals 7 | . 1 3 . 3 . Communications Jammed . | . . . . . . Distress Signals . | . . . . . . Times Spotted 95 | . 19 37 . 12 27 Peak Tracking Total 11 | . 4 8 . 6 11 Tactical Retreats 14 | . . 11 . 1 2 Traps | -11 -10 -9 -9 -8 -8 ------- Run | Scr Mat Mat Min Mat Sto Traps Triggered 6 | . 5 . . . 1 Indirectly . | . . . . . . Trap Hack Attempts . | . . . . . . Triggered . | . . . . . . Disarmed . | . . . . . . Reprogrammed . | . . . . . . Reused . | . . . . . . Traps Extracted . | . . . . . . Installed . | . . . . . . Triggered . | . . . . . . Machines | -11 -10 -9 -9 -8 -8 ---------- Run | Scr Mat Mat Min Mat Sto Machines Disabled 4 | . . . . 3 1 Max in Single Turn 2 | . . . . 2 1 Machines Sabotaged . | . . . . . . Garrisons Compromised . | . . . . . . Overloaded Fab Kills . | . . . . . . Hacking | -11 -10 -9 -9 -8 -8 --------- Run | Scr Mat Mat Min Mat Sto Machines Accessed 9 | . 3 3 . . 3 Terminals 6 | . 1 2 . . 3 Fabricators . | . . . . . . Repair Stations . | . . . . . . Recycling Units 2 | . 2 . . . . Scanalyzers 1 | . . 1 . . . Garrison Access . | . . . . . . Total Hacks 19 | . 6 8 . . 5 Successful 12 | . 5 4 . . 3 Failed 7 | . 1 4 . . 2 Catastrophic . | . . . . . . Database Lockouts . | . . . . . . Manual 5 | . . 4 . . 1 Terminals 13 | . 2 6 . . 5 Fabricators . | . . . . . . Repair Stations . | . . . . . . Recycling Units 4 | . 4 . . . . Scanalyzers 2 | . . 2 . . . Garrison Access . | . . . . . . Terminal Hacks 7 | . 2 2 . . 3 Open Door 2 | . . . . . 2 Locate Traps 3 | . 1 2 . . . Zone Layout 2 | . 1 . . . 1 Fabricator Hacks . | . . . . . . Repair Station Hacks . | . . . . . . Recycling Unit Hacks 3 | . 3 . . . . Report Inventory 2 | . 2 . . . . Retrieve Matter 1 | . 1 . . . . Scanalyzer 2 | . . 2 . . . Insert Component 1 | . . 1 . . . Analyze 1 | . . 1 . . . Garrison Access Hacks . | . . . . . . Unauthorized Hacks . | . . . . . . Terminals . | . . . . . . Fabricators . | . . . . . . Repair Stations . | . . . . . . Recycling Units . | . . . . . . Scanalyzers . | . . . . . . Garrison Access . | . . . . . . Data Cores Recovered . | . . . . . . Used . | . . . . . . Hacking Detections 5 | . 1 3 . . 1 Full Trace Events 2 | . . 2 . . . Feedback Events . | . . . . . . Feedback Blocked . | . . . . . . Robot Schematics Acquired . | . . . . . . Robots Built . | . . . . . . Authchips . | . . . . . . Time . | . . . . . . Total Robot Build Rating . | . . . . . . Part Schematics Acquired 1 | . . 1 . . . Parts Built . | . . . . . . Authchips . | . . . . . . Time . | . . . . . . Total Part Build Rating . | . . . . . . Parts Repaired . | . . . . . . Time . | . . . . . . Parts Recycled . | . . . . . . Recycled Matter . | . . . . . . Retrieved Matter . | . . . . . . Retrieved Components . | . . . . . . Parts Scanalyzed 1 | . . 1 . . . Part Schematics Acquired 1 | . . 1 . . . Parts Damaged . | . . . . . . Bothacking | -11 -10 -9 -9 -8 -8 ------------ Run | Scr Mat Mat Min Mat Sto Used RIF Installer . | . . . . . . Robots Hacked . | . . . . . . Non-combat . | . . . . . . Combat . | . . . . . . Robot Hacks Applied . | . . . . . . Relay Couplers Released . | . . . . . . Fabnet Peak Effective % . | . . . . . . Robots Rewired . | . . . . . . Allies Hacked . | . . . . . . Hacks Repelled . | . . . . . . Allies | -11 -10 -9 -9 -8 -8 -------- Run | Scr Mat Mat Min Mat Sto Total Allies . | . . . . . . Largest Group . | . . . . . . Highest-Rated Group . | . . . . . . Highest-Rated Ally . | . . . . . . Total Orders . | . . . . . . Ally Attacks . | . . . . . . Total Damage . | . . . . . . Kills . | . . . . . . Allies Corrupted . | . . . . . . Allies Melted . | . . . . . . Intel | -11 -10 -9 -9 -8 -8 ------- Run | Scr Mat Mat Min Mat Sto Robot Analysis Total . | . . . . . . Derelict Logs Recovered . | . . . . . . Drone Launches 2 | . . . . . 2 Drone Recoveries . | . . . . . . Exploration | -11 -10 -9 -9 -8 -8 ------------- Run | Scr Mat Mat Min Mat Sto Turns Passed 2632 | 60 1018 822 60 181 491 Spaces Moved 1436 | 47 676 364 50 70 229 Core 68 | 13 3 4 . . 48 Treads 91 | . . 91 . . . Legs 1277 | 34 673 269 50 70 181 Wheels . | . . . . . . Hover . | . . . . . . Flight . | . . . . . . Fastest Speed 50 | 50 120 120 120 120 50 Average Speed 126 | 104 123 145 120 122 107 Slowest Speed 500 | 150 300 500 120 190 190 Overloaded Moves . | . . . . . . Propulsion Burnouts . | . . . . . . Robots Hopped . | . . . . . . Cave-ins Triggered . | . . . . . . Exploration Rate (%) 32 | 3 84 42 16 13 38 Regions Visited 5 Branch Regions 2 Pre-discovered Areas . | . . . . . . Known Exits Taken 1 | . 1 . . . . Unknown Exits Taken 4 | 1 . 1 1 1 . Scrap Searched . | . . . . . . Spaces Dug 17 | . 4 . . . 13 Terrain Destroyed 89 | . 4 7 . 63 15 Melee . | . . . . . . Projectile 7 | . 4 1 . . 2 AOE 82 | . . 6 . 63 13 Terrain Rammed . | . . . . . . Walls Destroyed . | . . . . . . Machines Disabled . | . . . . . . Actions | -11 -10 -9 -9 -8 -8 --------- Run | Scr Mat Mat Min Mat Sto Total 1916 | 54 783 528 50 123 378 Wait 163 | . 29 40 . 13 81 Move 1431 | 46 675 363 49 69 229 Hop . | . . . . . . Pick Up 38 | 2 13 17 1 2 3 Fast Attach 29 | 6 11 9 . 2 1 Attach 20 | . 2 10 . 5 3 Detach 6 | . . 5 . 1 . Swap 24 | . 7 7 . 4 6 Drop 29 | . 10 13 . 3 3 Fire 174 | . 34 64 . 24 52 Melee . | . . . . . . Ram . | . . . . . . Kick 2 | . 2 . . . . Crush . | . . . . . . Escape Stasis . | . . . . . . Rewire . | . . . . . . Trap . | . . . . . . Miscellaneous . | . . . . . . Route ------- -11/Scrapyard -10/Materials (discovered 4 exits: *Mat x3 / *Min) -9/Materials (discovered 2 exits: [*Mat] / [*Min]) -9/Mines -8/Materials (discovered 2 exits: [*Fac] / *Sto) -8/Storage History --------- Turn | Location | Event 9 | -11/Scrapyard | Discovered new exit (range 15) 61 | -11/Scrapyard | Entered Materials 197 | -10/Materials | Discovered new exit (range 11) 303 | -10/Materials | Build established: Mutant 772 | -10/Materials | Discovered new exit (range 10) 834 | -10/Materials | Discovered new exit (range 16) 873 | -10/Materials | Discovered new exit (range 16) 957 | -10/Materials | Identified exit to Mines 1077 | -10/Materials | Identified exit to Materials 1079 | -10/Materials | Entered another Materials area 1079 | -9/Materials | Evolved 2 slots: Propulsion x2 1218 | -9/Materials | Lost 3 parts (2n1w) 1337 | -9/Materials | Build established: Scavenger-Mutant 1344 | -9/Materials | Core integrity fell below 50% 1612 | -9/Materials | Discovered new exit (range 4) 1802 | -9/Materials | Discovered new exit (range 16) 1901 | -9/Materials | Entered Mines 1908 | -9/Mines | Received a Rocket Launcher from a helpful Derelict 1950 | -9/Mines | Discovered new exit (range 9) 1961 | -9/Mines | Assembled infested the area 1961 | -9/Mines | Entered Materials 1961 | -8/Materials | Evolved 2 slots: Utility x2 2012 | -8/Materials | Discovered new exit (range 14) 2079 | -8/Materials | Discovered new exit (range 18) 2125 | -8/Materials | Lost 4 parts (2n2w) 2133 | -8/Materials | Build established: Mutant 2142 | -8/Materials | Entered Storage 2301 | -8/Storage | Garrison activated, responded to threat 2369 | -8/Storage | Lost 3 parts (1p1n1u) 2542 | -8/Storage | Core integrity fell below 50% 2582 | -8/Storage | Lost 3 parts (1p1n1w) 2612 | -8/Storage | Core integrity fell below 20% 2633 | -8/Storage | Destroyed by S-10 Pest with Light Assault Rifle Last Messages --------------- 02568_ K-01 Serf collects debris. 02571_ G-50 Soldier overheating. 02571_ K-01 Serf collects debris. 02572_ G-50 Soldier heat damages Lgt. Angular Momentum Engine, Adv. Heat Sink. 02572_ G-50 Soldier overheating. 02574_ Melted Carbon-fiber Leg. 02574_ G-50 Soldier destroyed. 02574_ Terminal disabled. 02575_ Acquired 62 matter. 02576_ K-01 Serf collects debris. 02579_ Acquired 28 matter. 02583_ K-01 Serf collects debris. 02597_ Aluminum Leg destroyed. 02602_ Rocket Launcher destroyed. 02603_ K-01 Serf collects debris. 02604_ Aluminum Leg destroyed. 02605_ Dropped Lrg. Storage Unit. 02608_ Hvy. Particle Cannon destroyed. 02623_ Critical hit (Burn: +37). Map ----- +----------------------------------------------------+ | | | | | | | | | | | | | | | | | | | | | | | | | | | | | | | | | | | ?????????????????????????????????????????????????? | | ??????????########???????????????????????????????? | | ???###????#!!! #T##??????????????????????????????? | | ???# #????# #?????????????????????########## | | ???# ##???#!!!!# #?????????????????????# # | | ???# T#???###### #?????????????????????# "???? | | ####+###########+########+############### """"???? | | ^ # "??????? | | @ ss + "??????? | | s # " """" # | | ###############+#########+##+######## # """ # | | ??????????????# #??? # # # # | | ?????????????#T #?# # # # # | | ?????????????##"""##?# # # #######+## | | ?????????????????????# # # #?????# #? | | ?????????????????????# # + #?????# #? | | ?????????????????????# # # ####### ## | | ?????????????????????# #= # | | ?????????????????????# # / | | ?????????????????????# # # | | ?????????????????????# # ### ######### | | ?????????????????????# # !#?# #???## ##% | | ?????????????????????######### ### ##??# # | | ???????????????????????? #* = ## #??# ##% | | ???????????????????????? ##/##/### T #??## #= | | ???????????????????????? ## #?# ##### !#! | | ???????????????????????? ## #?########## #= | | ???????????????????????? ## #??????## ####! | | ???????????????????????? ## #??????##"##?#! | | ????????????????????????##+#### #??????## T#?#% | | ????????????????????????# ### #########+#### | | ????????????????????????# | | ????????????????????????# ######### | +----------------------------------------------------+ Best States ------------- Heat Dissipation 38 Energy Generation 14 Energy Capacity 265 Matter Stores 300 Matter Capacity 300 Sight Range 20 Robot Scan Range 14 Terrain Scan Density 10 ECM Strength 1 Additional Mass Support 6 Weapon Shielding 33 Evasion (%) 55 Launcher Accuracy 20 Recoil Reduction 4 Item Schematics ----------------- Sensor Array | -9/Materials | Scanalyzed Robot Schematics ------------------ None Fabricated ------------ Nothing Alien Tech Used ----------------- None Achievements -------------- None Challenges ------------ None Game ------ Seed GravmagBattleStreamer Manual? 0 Play Time 00:40:06 Cumulative 42.5 hours Start 2022.12.20 @ 19:16:08 End 2022.12.20 @ 19:59:30 Sessions 1 Manual Loads 0 Difficulty Rogue Special Mode None Game No. 38 Rogue 38 Adventurer 0 Explorer 0 Win Type - Total 0 Types 0/0/0/0/0/0/0/0/0 Lore% 13 Gallery% 28 Achievement% 17 Wizard Run 0 Options --------- ASCII 0 Keyboard 1 Movement Arrows Keybinds 0 Fullscreen 1 Font 24/Smallcaps Map View 76x50 Tactical HUD 1 Map Filters NONE Filters NONE Steam 1 RUN: 0534f987-f056-4b05-8cfc-ecc54ccf1bdf